bitfinex/quotes_SOLUSD_20250920
["timestamp","ask_amount","ask_price","bid_price","bid_amount"]
[1758399704246,2.81699514,239.31,239.28,14.28559401]
[1758399704527,4.17885499,239.3,239.28,14.28559401]
[1758399706133,6.99585013,239.3,239.29,0.69]
[1758399706339,4.17885499,239.3,239.29,0.69]
[1758399706735,6.99585013,239.3,239.29,0.69]
[1758399708052,2.81699514,239.3,239.29,0.69]
[1758399710962,0.1,239.37,239.29,6.74892367]
[1758399711141,0.1,239.37,239.35,46.2575851]
[1758399711451,0.1,239.37,239.35,78.4375851]
[1758399711653,0.1,239.37,239.35,79.1275851]
[1758399711863,0.1,239.37,239.35,80.80231139]
[1758399712042,0.1,239.37,239.35,84.98029342]
[1758399714046,0.1,239.37,239.35,88.10389103]
[1758399715157,0.1,239.37,239.35,83.925909]
[1758399715763,0.1,239.37,239.35,52.015909]
[1758399715956,0.70000001,239.36,239.35,18.39391791]
[1758399716161,0.70000001,239.36,239.35,15.2703203]
[1758399716543,0.70000001,239.36,239.34,32.16]
[1758399717040,0.70000001,239.36,239.34,13.59559401]
[1758399717369,4.87794069,239.36,239.34,13.59559401]
[1758399720374,4.17794069,239.36,239.34,13.59559401]
[1758399720575,4.17794069,239.36,239.35,1.46199109]
[1758399722771,4.87794069,239.36,239.35,1.46199109]
[1758399724369,4.87794069,239.36,239.33,1.46199109]
[1758399724676,0.72,239.35,239.33,1.46199109]
[1758399724869,4.17794069,239.36,239.3,1.46199109]
[1758399724870,3.53294802,239.34,239.3,1.46199109]
[1758399725069,0.72,239.33,239.3,1.46199109]
[1758399725270,0.72,239.32,239.3,1.46199109]
[1758399725467,0.72,239.31,239.3,1.46199109]
[1758399726366,4.89868037,239.31,239.3,1.46199109]
[1758399727463,4.89868037,239.31,239.26,12.54366429]
[1758399727464,18.15832932,239.31,239.23,13.59559401]
[1758399727774,3.53294802,239.3,239.23,2.28561256]
[1758399727955,0.72,239.29,239.23,2.28561256]
[1758399728154,0.72,239.28,239.23,2.28561256]
[1758399728362,0.72,239.27,239.23,2.28561256]
[1758399728567,0.72,239.26,239.23,2.28561256]
[1758399728750,4.17972831,239.25,239.23,2.28561256]
[1758399728949,4.17972831,239.25,239.23,2.97561256]
[1758399729394,4.17972831,239.25,239.23,2.28561256]
[1758399734562,4.17972831,239.25,239.24,2.28561256]
[1758399738585,4.89972831,239.25,239.24,2.28561256]
[1758399741856,4.89972831,239.25,239.22,0.69]
[1758399742059,0.72,239.24,239.23,2.28561256]
[1758399742281,0.72,239.24,239.22,34.42561256]
[1758399743888,4.90007774,239.23,239.22,2.28561256]
[1758399744070,4.90007774,239.23,239.18,0.69]
[1758399744071,15.35027211,239.23,239.2,2.28561256]
[1758399744284,0.72,239.22,239.2,2.28561256]
[1758399744469,0.72,239.21,239.2,2.28561256]
[1758399745791,4.90042723,239.21,239.2,2.28561256]
[1758399746973,4.18042723,239.21,239.2,2.28561256]
[1758399747576,4.18042723,239.21,239.2,2.96561256]
[1758399747890,4.18042723,239.21,239.18,0.68]
[1758399748188,4.84042723,239.21,239.19,2.28561256]
[1758399748393,4.18042723,239.21,239.19,2.28561256]
[1758399749486,4.18025248,239.22,239.19,2.96561256]
[1758399751296,14.63027211,239.23,239.19,2.96561256]
[1758399751495,15.29027211,239.23,239.19,2.96561256]
[1758399752383,14.63027211,239.23,239.2,0.68]
[1758399752594,14.63027211,239.23,239.2,2.96561256]
[1758399753181,10.45019437,239.23,239.2,2.96561256]
[1758399755904,10.45019437,239.23,239.2,0.68]
[1758399758789,10.45019437,239.23,239.19,2.28561256]
[1758399758985,11.11019437,239.23,239.2,2.28561256]
[1758399759799,15.29027211,239.23,239.2,2.28561256]
[1758399760189,14.63027211,239.23,239.2,2.96561256]
[1758399761189,10.45019437,239.23,239.2,2.28561256]
[1758399761399,11.11019437,239.23,239.2,2.28561256]
[1758399762105,11.11019437,239.23,239.19,2.96561256]
[1758399762299,10.45019437,239.23,239.19,2.96561256]
[1758399763505,14.63027211,239.23,239.2,0.68]
[1758399766013,10.45019437,239.23,239.19,2.28561256]
[1758399766228,11.11019437,239.23,239.19,2.96561256]
[1758399767208,15.29027211,239.23,239.19,2.96561256]
[1758399768210,2.8144187,239.22,239.19,2.96561256]
[1758399769122,4.18042723,239.21,239.19,2.96561256]
[1758399772121,6.99484593,239.21,239.19,2.96561256]
[1758399772314,14.63027211,239.23,239.19,2.96561256]
[1758399772523,2.8191159,239.22,239.19,2.96561256]
[1758399772715,2.8191159,239.21,239.19,2.96561256]
[1758399773021,2.8191159,239.22,239.19,2.96561256]
[1758399773207,2.8191159,239.21,239.19,2.96561256]
[1758399773409,4.18042723,239.21,239.19,2.96561256]
[1758399773621,6.99954313,239.21,239.19,2.96561256]
[1758399773927,4.18042723,239.21,239.19,2.96561256]
[1758399774439,6.99974146,239.21,239.19,2.96561256]
[1758399774719,14.63027211,239.23,239.19,2.96561256]
[1758399774925,15.29027211,239.23,239.19,2.96561256]
[1758399778328,15.29027211,239.23,239.19,2.28561256]
[1758399778826,15.29027211,239.23,239.19,2.97561256]
[1758399780307,3.51819117,239.3,239.23,13.59559401]
[1758399780523,0.68,239.31,239.25,2.28561256]
[1758399780824,0.68,239.3,239.25,2.97561256]
[1758399781030,0.68,239.29,239.25,2.97561256]
[1758399781942,4.17902962,239.29,239.24,2.28561256]
[1758399782133,4.17902962,239.29,239.26,0.69]
[1758399782719,4.85902962,239.29,239.24,2.97561256]
[1758399783032,4.85902962,239.29,239.25,0.69]
[1758399786049,14.62615538,239.3,239.25,0.69]
[1758399786248,14.62615538,239.3,239.26,2.98561256]
[1758399786540,14.62615538,239.3,239.27,2.98561256]
[1758399786717,2.81939738,239.29,239.28,0.7]
[1758399787342,2.81939738,239.29,239.27,2.28561256]
[1758399787547,2.81939738,239.28,239.27,2.98561256]
[1758399787844,2.81939738,239.28,239.27,2.16232548]
[1758399788146,2.81939738,239.28,239.27,0.7]
[1758399790144,6.99860165,239.28,239.27,0.7]
[1758399791155,4.17920427,239.28,239.27,0.7]
[1758399791443,6.99860165,239.28,239.27,0.7]
[1758399791925,4.17920427,239.28,239.27,0.7]
[1758399792127,6.99860165,239.28,239.27,0.7]
[1758399792453,4.17920427,239.28,239.27,0.7]
[1758399792625,6.99860165,239.28,239.27,0.7]
[1758399793027,4.17920427,239.28,239.27,0.7]
[1758399793332,6.99860165,239.28,239.27,0.7]
[1758399793535,4.17920427,239.28,239.27,0.7]
[1758399793833,6.99860165,239.28,239.27,0.7]
[1758399794034,4.17920427,239.28,239.27,0.7]
[1758399794221,6.99860165,239.28,239.27,0.7]
[1758399794423,4.17920427,239.28,239.27,0.7]
[1758399794728,18.14661234,239.28,239.24,0.7]
[1758399794930,2.81939738,239.27,239.23,33.48232548]
[1758399795124,2.81939738,239.27,239.23,34.18232548]
[1758399795445,2.81939738,239.27,239.24,0.7]
[1758399795837,4.17955362,239.26,239.24,0.7]
[1758399796746,4.17955362,239.26,239.23,32.02]
[1758399797055,4.17955362,239.26,239.23,32.72]
[1758399797229,4.17955362,239.26,239.24,0.7]
[1758399797850,4.17955362,239.26,239.23,32.02]
[1758399798159,4.17955362,239.26,239.24,0.7]
[1758399798525,4.17955362,239.26,239.22,34.18232548]
[1758399798731,6.998951,239.26,239.22,33.48232548]
[1758399798937,6.998951,239.26,239.23,0.7]
[1758399802448,17.44783505,239.26,239.21,13.59559401]
[1758399802649,3.51939738,239.25,239.21,14.29559401]
[1758399802848,2.81939738,239.25,239.22,0.7]
[1758399803858,4.17990302,239.24,239.22,0.7]
[1758399808064,18.15905796,239.24,239.19,0.69]
[1758399808234,3.52939738,239.23,239.17,2.15232548]
[1758399808435,3.52939738,239.22,239.17,2.15232548]
[1758399808640,0.71,239.22,239.17,1.46232548]
[1758399808836,3.52939738,239.22,239.18,0.69]
[1758399809135,0.71,239.22,239.18,0.69]
[1758399809334,6.99982461,239.21,239.18,0.69]
[1758399810539,7.70982461,239.21,239.16,47.74791949]
[1758399810735,6.99982461,239.21,239.17,0.69]
[1758399810942,6.99982461,239.21,239.16,47.05791949]
[1758399811144,6.99982461,239.21,239.17,0.69]
[1758399811341,6.99982461,239.21,239.18,0.69]
[1758399811860,14.63117336,239.22,239.18,0.69]
[1758399812056,0.71,239.21,239.16,47.74791949]
[1758399812548,0.71,239.21,239.17,0.69]
[1758399820866,10.45092088,239.22,239.18,0.69]
[1758399821049,10.45092088,239.22,239.15,13.95775361]
[1758399821255,10.45092088,239.22,239.16,2.15232548]
[1758399821443,10.45092088,239.22,239.17,0.69]
[1758399823783,14.63117336,239.22,239.17,0.69]
[1758399825369,10.45092088,239.22,239.17,0.69]
[1758399826081,10.45092088,239.22,239.16,1.46232548]
[1758399826280,11.16092088,239.22,239.18,0.69]
[1758399827009,4.18042723,239.21,239.18,0.69]
[1758399827687,6.99669585,239.21,239.18,0.69]
[1758399829888,2.81626862,239.21,239.18,1.46232548]
[1758399830084,10.44958616,239.25,239.2,1.46232548]
[1758399830388,2.81631543,239.24,239.21,1.46232548]
[1758399830687,6.99632207,239.24,239.22,0.69]
[1758399830905,2.81631543,239.23,239.22,0.69]
[1758399831478,2.81631543,239.23,239.22,2.15232548]
[1758399831799,2.81631543,239.24,239.22,15.74791949]
[1758399831996,2.81631543,239.27,239.23,2.15232548]
[1758399832203,2.81631543,239.26,239.23,2.15232548]
[1758399832388,4.17955503,239.26,239.23,2.15232548]
[1758399832588,6.99587046,239.26,239.23,2.15232548]
[1758399832790,2.81631543,239.25,239.23,2.15232548]
[1758399833180,4.17975681,239.25,239.23,2.15232548]
[1758399833401,4.17975681,239.25,239.23,0.69]
[1758399833597,6.99607224,239.25,239.23,0.69]
[1758399833903,2.81631543,239.24,239.23,0.69]
[1758399834313,4.17955362,239.26,239.23,0.69]
[1758399834486,6.99586905,239.26,239.23,0.69]
[1758399834797,2.81631543,239.25,239.23,0.69]
[1758399835298,2.81631543,239.24,239.23,0.69]
[1758399835489,6.99614257,239.25,239.23,0.69]
[1758399835689,2.81631543,239.24,239.23,0.69]
[1758399837204,6.9962386,239.24,239.22,1.46232548]
[1758399837408,2.81631543,239.23,239.22,2.14232548]
[1758399837778,4.17992317,239.24,239.22,2.14232548]
[1758399837982,0.69,239.23,239.19,13.59559401]
[1758399838187,3.50631543,239.23,239.19,15.05791949]
[1758399838483,3.50631543,239.23,239.19,15.73791949]
[1758399838901,3.50631543,239.23,239.19,14.27559401]
[1758399839089,4.18025248,239.22,239.19,14.27559401]
[1758399840313,6.99656791,239.22,239.19,14.27559401]
[1758399841405,4.18025248,239.22,239.19,14.27559401]
[1758399841602,6.9990298,239.23,239.19,14.27559401]
[1758399841902,6.9990298,239.23,239.2,0.68]
[1758399842813,4.18042723,239.21,239.2,0.68]
[1758399843706,6.99965621,239.21,239.2,0.68]
[1758399844008,2.81922898,239.21,239.2,0.68]
[1758399844700,4.18025248,239.22,239.2,0.68]
[1758399844916,6.99948146,239.22,239.2,0.68]
[1758399845080,6.99965621,239.21,239.2,0.68]
[1758399845497,4.18042723,239.21,239.2,0.68]
[1758399846400,2.81922898,239.21,239.2,0.68]
[1758399846594,4.18025248,239.22,239.19,13.59559401]
[1758399846903,6.99948146,239.22,239.19,14.29559401]
[1758399847202,2.81922898,239.21,239.19,14.29559401]
[1758399847400,6.99977944,239.21,239.19,14.29559401]
[1758399847606,4.18055046,239.21,239.19,14.29559401]
[1758399848187,7.0007368,239.21,239.19,14.29559401]
[1758399848400,4.18055046,239.21,239.19,14.29559401]
[1758399848693,4.18025248,239.22,239.19,14.29559401]
[1758399848901,2.82025814,239.21,239.19,14.29559401]
[1758399849708,7.00081357,239.21,239.19,14.29559401]
[1758399849915,4.18055543,239.21,239.19,16.58188419]
[1758399850484,7.0008867,239.21,239.19,16.58188419]
[1758399850720,4.18055543,239.21,239.19,16.58188419]
[1758399850909,4.18025248,239.22,239.19,16.58188419]
[1758399851108,2.8204062,239.21,239.19,16.58188419]
[1758399851406,2.8204062,239.21,239.19,15.88188419]
[1758399851589,2.8204062,239.21,239.2,0.7]
[1758399852107,7.00083343,239.21,239.2,0.7]
[1758399852402,4.18042723,239.21,239.2,0.7]
[1758399852613,7.00083343,239.21,239.2,0.7]
[1758399852782,4.18042723,239.21,239.2,0.7]
[1758399853204,7.00083343,239.21,239.2,0.7]
[1758399853384,2.8204062,239.21,239.2,0.7]
[1758399854513,7.00083343,239.21,239.2,0.7]
[1758399854808,7.00083343,239.21,239.19,15.88188419]
[1758399854989,4.18042723,239.21,239.2,0.7]
[1758399855604,7.00109389,239.21,239.2,0.7]
[1758399855790,2.82066666,239.21,239.2,0.7]
[1758399856191,2.82066666,239.21,239.19,15.88188419]
[1758399856491,2.82066666,239.21,239.19,16.58188419]
[1758399856992,4.18007774,239.23,239.19,16.58188419]
[1758399859608,4.18007774,239.23,239.2,0.7]
[1758399861707,0.68,239.26,239.21,0.7]
[1758399861896,0.68,239.25,239.21,0.7]
[1758399863217,17.59595076,239.24,239.16,2.98629018]
[1758399863401,0.68,239.23,239.17,0.7]
[1758399863598,2.96629018,239.23,239.17,0.7]
[1758399864121,3.13499663,239.22,239.17,0.7]
[1758399864321,3.13499663,239.21,239.17,0.7]
[1758399864615,14.63088369,239.22,239.17,0.7]
[1758399864823,0.68,239.21,239.17,0.7]
[1758399870124,14.63088369,239.22,239.18,0.66]
[1758399870420,15.33088369,239.22,239.18,0.66]
[1758399870808,15.33088369,239.22,239.16,2.94629018]
[1758399871016,15.33088369,239.22,239.17,0.66]
[1758399871638,15.33088369,239.22,239.17,2.94629018]
[1758399871942,0.7,239.21,239.17,2.94629018]
[1758399872122,0.7,239.21,239.17,0.66]
[1758399872321,0.7,239.21,239.17,2.94629018]
[1758399874639,15.33088369,239.22,239.17,2.94629018]
[1758399876442,3.13502576,239.21,239.17,2.94629018]
[1758399876650,0.7,239.22,239.17,2.94629018]
[1758399877846,14.63149532,239.21,239.17,2.94629018]
[1758399878057,14.63149532,239.21,239.18,0.66]
[1758399887346,14.63149532,239.21,239.19,0.66]
[1758399888052,14.63149532,239.21,239.17,2.28629018]
[1758399888230,10.45106809,239.21,239.18,0.66]
[1758399888742,11.15106809,239.21,239.16,0.66]
[1758399889256,10.45106809,239.21,239.16,2.28629018]
[1758399889440,10.45106809,239.21,239.17,0.66]
[1758399890256,10.45106809,239.21,239.14,14.25559401]
[1758399890433,10.45106809,239.21,239.15,0.66]
[1758399891652,12.73735827,239.21,239.15,0.66]
[1758399892334,16.9177855,239.21,239.15,0.66]
[1758399893354,10.45106809,239.21,239.15,0.66]
[1758399894659,14.63149532,239.21,239.15,0.66]
[1758399899461,12.73735827,239.21,239.15,0.66]
[1758399899768,10.45106809,239.21,239.16,2.99629018]
[1758399899961,23.02520309,239.21,239.16,2.28629018]
[1758399900466,21.38976432,239.2,239.18,2.28629018]
[1758399900651,21.38976432,239.2,239.19,0.71]
[1758399901068,4.18025248,239.22,239.19,0.71]
[1758399901367,2.28629018,239.21,239.19,0.71]
[1758399901573,4.18025248,239.22,239.19,0.71]
[1758399902346,4.18007774,239.23,239.19,0.71]
[1758399902569,4.18007774,239.23,239.22,2.28629018]
[1758399903356,4.18007774,239.23,239.22,2.99629018]
[1758399903566,10.44997967,239.24,239.22,2.99629018]
[1758399903863,4.17955362,239.26,239.23,0.67]
[1758399904780,8.36050177,239.26,239.23,0.67]
[1758399904963,4.17990302,239.24,239.23,0.67]
[1758399905158,4.17990302,239.24,239.22,2.28629018]
[1758399905159,2.82166009,239.24,239.22,2.28629018]
[1758399905471,2.82166009,239.23,239.22,2.28629018]
[1758399905851,2.82166009,239.23,239.22,2.95629018]
[1758399907566,2.82166009,239.23,239.22,20.73213667]
[1758399907876,2.82166009,239.27,239.23,13.59559401]
[1758399908074,2.82166009,239.26,239.24,0.67]
[1758399908264,2.82166009,239.25,239.24,14.26559401]
[1758399908461,2.82166009,239.32,239.24,14.26559401]
[1758399908668,2.82166009,239.31,239.25,0.67]
[1758399908862,2.82166009,239.3,239.26,13.59559401]
[1758399909176,2.82166009,239.29,239.27,0.67]
[1758399909381,2.82166009,239.31,239.28,2.28629018]
[1758399909556,31.98000001,239.36,239.29,0.67]
[1758399909557,2.82166009,239.3,239.29,0.67]
[1758399910279,6.99984876,239.34,239.29,0.67]
[1758399910486,2.82166009,239.33,239.3,0.67]
[1758399910789,2.82166009,239.32,239.31,2.28629018]
[1758399911477,7.00016585,239.32,239.31,2.28629018]
[1758399911771,7.00016585,239.32,239.3,2.13199668]
[1758399912002,2.82166009,239.31,239.3,2.13199668]
[1758399917371,2.82166009,239.33,239.3,2.13199668]
[1758399917576,2.82166009,239.32,239.3,2.13199668]
[1758399917775,2.82166009,239.33,239.3,2.13199668]
[1758399917974,2.82166009,239.32,239.3,2.13199668]
[1758399918170,4.17850576,239.32,239.31,0.67]
[1758399918489,7.00016585,239.32,239.31,0.67]
[1758399918668,4.17850576,239.32,239.31,0.67]
[1758399919270,7.00016585,239.32,239.31,0.67]
[1758399919487,4.17815659,239.34,239.31,0.67]
[1758399919686,2.82166009,239.33,239.31,0.67]
[1758399919893,2.82166009,239.32,239.31,0.67]
[1758399920080,2.82166009,239.33,239.31,0.67]
[1758399921070,4.17850576,239.32,239.31,0.67]
[1758399922193,4.17833117,239.33,239.31,0.67]
[1758399922509,6.99999126,239.33,239.31,0.67]
[1758399922795,2.82166009,239.32,239.31,0.67]
[1758399923093,2.82166009,239.34,239.31,0.67]
[1758399923503,6.99981975,239.34,239.31,0.67]
[1758399923790,2.82166009,239.33,239.31,0.67]
[1758399924177,4.17815966,239.34,239.31,0.67]
[1758399924982,6.99964598,239.35,239.31,0.67]
[1758399925587,2.8216601,239.36,239.32,13.59559401]
[1758399925776,2.8216601,239.36,239.33,0.67]
[1758399925978,6.99949483,239.36,239.33,0.67]
[1758399926178,2.82166009,239.35,239.33,0.67]
[1758399926574,4.17783474,239.36,239.33,0.67]
[1758399927597,6.99949483,239.36,239.33,0.67]
[1758399927793,2.82166009,239.35,239.33,0.67]
[1758399928300,4.17783474,239.36,239.33,0.67]
[1758399932111,1e-08,239.36,239.33,0.67]
[1758399945112,1e-08,239.36,239.33,2.13199668]
[1758399945302,1e-08,239.36,239.34,0.67]
[1758399948309,6.98374857,239.36,239.34,0.67]
[1758399949213,2.80592491,239.35,239.34,0.67]
[1758399954216,2.80592491,239.35,239.34,14.26559401]
[1758399954517,2.80592492,239.36,239.35,13.59559401]
[1758399954721,2.80592492,239.36,239.35,15.72759069]
[1758399955623,1e-08,239.36,239.35,15.72759069]
[1758399957500,1e-08,239.36,239.35,18.6335156]
[1758399957707,1e-08,239.36,239.35,28.53885134]
[1758399959718,1e-08,239.36,239.34,7.08339755]
[1758399959922,2.80592492,239.36,239.33,0.66]
[1758399960220,2.80592492,239.36,239.34,31.92]
[1758399960409,2.80592492,239.36,239.35,14.25559401]
[1758399961902,6.9837324,239.36,239.34,31.92]
[1758399962124,2.80592491,239.35,239.34,32.58]
[1758399964828,6.98390694,239.35,239.34,32.58]
[1758399970405,2.80592491,239.35,239.34,32.58]
[1758399974044,2.80592491,239.35,239.34,46.17559401]
[1758399974338,1e-08,239.36,239.35,13.59559401]
[1758399974540,2.81878759,239.36,239.35,16.53919609]
[1758399975251,2.81878759,239.36,239.35,20.71717812]
[1758399975416,1e-08,239.36,239.35,20.71717812]
[1758399975745,1e-08,239.36,239.35,23.53596571]
[1758399983670,1e-08,239.36,239.35,23.95376391]
[1758400020411,0.1,239.37,239.35,23.95376391]
[1758400020616,0.1,239.37,239.36,46.17559401]
[1758400021126,0.1,239.37,239.36,47.84982962]
[1758400021720,0.1,239.37,239.36,52.0276371]
[1758400025325,0.1,239.37,239.36,54.72901992]
[1758400026205,0.1,239.37,239.36,22.82901992]
[1758400026417,0.1,239.37,239.36,54.72901992]
[1758400033847,0.1,239.37,239.36,53.90588219]
[1758400038514,0.1,239.38,239.37,13.59559401]
[1758400038712,0.1,239.38,239.37,14.28559401]
[1758400038938,0.1,239.39,239.37,14.28559401]
[1758400039136,0.1,239.39,239.36,48.40057128]
[1758400039137,0.1,239.39,239.38,48.0638042]
[1758400039817,0.1,239.39,239.38,49.73789966]
[1758400041216,0.1,239.39,239.38,53.91535809]
[1758400047536,0.1,239.4,239.39,13.59559401]
[1758400047727,0.1,239.4,239.39,14.29559401]
[1758400048239,0.1,239.4,239.39,15.96961942]
[1758400048640,0.1,239.4,239.39,20.14690334]
[1758400055042,0.1,239.45,239.39,30.59011316]
[1758400055339,0.1,239.45,239.41,15.05605836]
[1758400055856,0.1,239.45,239.41,15.75605836]
[1758400056143,0.1,239.45,239.42,46.59327006]
[1758400056530,0.1,239.45,239.42,48.26708531]
[1758400056931,0.1,239.45,239.42,52.44384581]
[1758400078859,0.1,239.45,239.42,19.86384581]
[1758400079167,0.1,239.45,239.42,52.78663411]
[1758400079363,0.1,239.45,239.42,53.88431016]
[1758400079563,0.1,239.45,239.42,19.86384581]
[1758400079774,0.1,239.45,239.42,53.88431016]
[1758400082469,0.1,239.45,239.42,52.21049491]
[1758400082767,0.1,239.45,239.42,50.33235451]
[1758400082967,0.1,239.45,239.42,51.79281886]
[1758400083272,0.1,239.45,239.42,53.46670416]
[1758400085370,0.1,239.45,239.42,51.79281886]
[1758400088777,0.1,239.45,239.42,19.91281886]
[1758400088983,0.1,239.45,239.42,51.77281886]
[1758400090269,0.1,239.45,239.42,50.31235451]
[1758400091961,0.1,239.45,239.42,49.63235451]
[1758400092288,0.1,239.45,239.42,50.32235451]
[1758400094990,0.1,239.45,239.42,49.63235451]
[1758400095392,0.1,239.45,239.42,50.32235451]
[1758400096067,0.1,239.45,239.42,17.77235451]
[1758400096269,0.1,239.45,239.42,49.63235451]
[1758400096586,0.1,239.45,239.42,50.32235451]
[1758400097582,0.1,239.45,239.42,49.63235451]
[1758400098997,0.1,239.45,239.42,17.77235451]
[1758400099297,0.1,239.45,239.42,49.63235451]
[1758400101290,0.1,239.45,239.42,50.32235451]
[1758400103393,0.1,239.45,239.42,52.60375249]
[1758400108491,0.1,239.45,239.42,54.69531384]
[1758400112112,1e-08,239.47,239.44,15.87699199]
[1758400112330,1e-08,239.48,239.47,13.59559401]
[1758400112511,0.1,239.5,239.49,44.79559401]
[1758400112817,0.1,239.5,239.49,77.07314797]
[1758400113003,0.1,239.5,239.49,77.75314797]
[1758400113190,0.1,239.5,239.49,84.21008563]
[1758400113391,0.1,239.5,239.49,86.61067977]
[1758400128834,0.1,239.5,239.49,52.46928179]
[1758400129042,0.1,239.5,239.49,84.30928179]
[1758400129219,0.1,239.5,239.49,86.59067977]
[1758400130029,0.1,239.5,239.49,84.30928179]
[1758400130220,0.1,239.5,239.49,86.59067977]
[1758400131749,0.1,239.5,239.49,83.62928179]
[1758400132038,0.1,239.5,239.49,85.91067977]
[1758400132838,0.1,239.5,239.49,51.78928179]
[1758400133016,0.1,239.5,239.49,84.30928179]
[1758400137937,0.2,239.59,239.54,13.59559401]
[1758400138234,0.2,239.59,239.56,13.59559401]
[1758400138412,0.2,239.59,239.58,13.59559401]
[1758400139720,0.2,239.59,239.58,17.76956512]
[1758400141139,0.2,239.59,239.58,30.09086939]
[1758400146234,0.2,239.59,239.58,61.93086939]
[1758400149659,0.2,239.59,239.58,62.63086939]
[1758400163967,0.2,239.59,239.58,64.08915772]
[1758400167360,0.2,239.59,239.58,65.76192301]
[1758400173954,0.2,239.59,239.58,33.92192301]
[1758400174270,0.2,239.59,239.58,31.76363468]
[1758400174574,0.2,239.59,239.58,63.58363468]
[1758400174773,0.2,239.59,239.58,64.29363468]
[1758400187004,0.2,239.59,239.58,32.47363468]
[1758400187177,0.2,239.59,239.58,64.29363468]
[1758400193201,0.2,239.59,239.58,32.47363468]
[1758400193379,0.2,239.59,239.58,64.29363468]
[1758400199994,0.2,239.59,239.58,61.91086939]
[1758400200195,0.2,239.59,239.58,62.58086939]
[1758400200884,0.2,239.59,239.58,64.25370464]
[1758400213807,0.2,239.59,239.58,30.09086939]
[1758400214005,0.2,239.59,239.58,61.91086939]
[1758400215112,1.65828833,239.59,239.58,25.91689828]
[1758400215317,1.65828833,239.59,239.58,57.73689828]
[1758400216313,1.65828833,239.59,239.58,45.41559401]
[1758400216515,1.65828833,239.59,239.58,31.82]
[1758400217622,1.65828833,239.59,239.56,13.59559401]
[1758400217808,2.27960377,239.58,239.57,45.41559401]
[1758400218221,2.27960377,239.58,239.57,13.59559401]
[1758400218427,2.27960377,239.58,239.57,45.41559401]
[1758400219028,2.27960377,239.58,239.57,57.68475525]
[1758400220927,2.27960377,239.58,239.57,45.41559401]
[1758400222522,0.2,239.59,239.57,45.41559401]
[1758400222719,2.27960377,239.58,239.57,45.41559401]
[1758400224122,2.27960377,239.58,239.57,13.59559401]
[1758400224428,2.27960377,239.58,239.57,45.41559401]
[1758400226429,10.82685707,239.58,239.57,31.82]
[1758400229136,10.82685707,239.58,239.55,0.7]
[1758400229428,10.82685707,239.58,239.56,45.41559401]
[1758400229632,10.82685707,239.58,239.56,46.11559401]
[1758400230208,2.27960377,239.57,239.56,46.11559401]
[1758400231238,2.27993743,239.57,239.56,46.11559401]
[1758400232536,8.5472533,239.58,239.56,46.11559401]
[1758400232726,2.27993743,239.57,239.56,45.41559401]
[1758400233242,2.27993743,239.57,239.56,46.11559401]
[1758400236326,2.27993743,239.57,239.56,50.28991359]
[1758400236731,2.27993743,239.58,239.56,50.28991359]
[1758400236920,2.47993743,239.59,239.58,13.59559401]
[1758400237121,2.47993743,239.59,239.58,45.41559401]
[1758400237334,2.47993743,239.59,239.58,46.11559401]
[1758400237841,2.47993743,239.59,239.58,50.28956512]
[1758400240836,0.2,239.59,239.58,50.28956512]
[1758400243627,0.2,239.59,239.58,18.46956512]
[1758400243940,0.2,239.59,239.58,50.28956512]
[1758400249867,0.2,239.59,239.58,50.26956512]
[1758400260263,0.2,239.59,239.58,18.46956512]
[1758400260463,0.2,239.59,239.58,50.26956512]
[1758400265598,2.47870472,239.59,239.57,13.59559401]
[1758400265892,2.47870472,239.59,239.58,45.39559401]
[1758400266077,0.2,239.59,239.58,45.39559401]
[1758400270003,0.2,239.59,239.58,13.59559401]
[1758400270182,0.2,239.59,239.58,45.39559401]
[1758400271710,0.2,239.59,239.58,46.06559401]
[1758400272203,0.2,239.59,239.58,45.39559401]
[1758400272375,0.2,239.59,239.58,46.06559401]
[1758400273509,6.65250162,239.59,239.58,13.59559401]
[1758400273689,6.65250162,239.59,239.58,31.8]
[1758400274010,9.46783234,239.59,239.58,31.8]
[1758400274674,5.29403544,239.59,239.58,31.8]
[1758400274880,5.29403544,239.59,239.56,13.59559401]